bitfinex-derivatives/quotes_SOLF0:USTF0_20250320
["timestamp","ask_amount","ask_price","bid_price","bid_amount"]
[1742485444865,32.73924148,128.95,128.93,7.7589]
[1742485445162,32.73924148,128.95,128.92,0.05685177]
[1742485446071,32.73924148,128.95,128.94,7.7584]
[1742485446263,32.73924148,128.95,128.92,0.05685177]
[1742485446463,32.73924148,128.95,128.94,7.7584]
[1742485447070,0.05924148,128.95,128.94,7.7584]
[1742485447768,0.05924148,128.95,128.93,7.7588]
[1742485448974,0.05924148,128.95,128.92,7.81625177]
[1742485449176,32.68,128.94,128.92,0.05685177]
[1742485450170,32.68,128.94,128.93,7.759]
[1742485451076,0.05924148,128.95,128.93,7.759]
[1742485451275,32.73924148,128.95,128.94,7.7584]
[1742485452268,0.05924148,128.95,128.94,7.7584]
[1742485452669,40.54895518,129.02,128.92,40.97015177]
[1742485452670,405.54895518,129.04,128.92,81.51910695]
[1742485452977,32.68,129.03,128.93,3.9829]
[1742485453471,40.54895518,129.02,128.93,3.9829]
[1742485453777,40.54895518,129.02,128.96,7.80610706]
[1742485453778,7.81321961,128.99,128.96,7.80610706]
[1742485453969,32.68,128.98,128.96,7.80610706]
[1742485454670,32.68,128.98,128.97,7.7566]
[1742485455177,0.05771961,128.99,128.98,7.756]
[1742485455367,0.05771961,128.99,128.96,0.04940706]
[1742485456165,0.05771961,128.99,128.98,7.756]
[1742485456879,0.05771961,128.99,128.97,7.7564]
[1742485457178,0.05771961,128.99,128.96,0.04940706]
[1742485457682,32.66,128.98,128.96,0.04940706]
[1742485458776,0.05771961,128.99,128.96,0.04940706]
[1742485459074,0.05771961,128.99,128.98,7.756]
[1742485460074,0.05771961,128.99,128.97,7.7565]
[1742485460680,0.05771961,128.99,128.98,7.756]
[1742485461577,1.961e-05,128.99,128.98,7.756]
[1742485461969,1.961e-05,128.99,128.98,40.416]
[1742485462382,1.961e-05,128.99,128.98,48.7729]
[1742485464479,1.961e-05,128.99,128.98,7.756]
[1742485472476,32.64,129.06,129.05,7.7513]
[1742485472679,7.7496,129.09,129.01,32.64]
[1742485472879,32.64,129.07,129.01,32.64]
[1742485473078,365.0,129.1,129.01,32.64]
[1742485473478,365.0,129.1,129.09,7.7494]
[1742485473678,32.64,129.1,129.09,7.7494]
[1742485474179,0.05310439,129.11,129.08,7.80708533]
[1742485474377,32.69310439,129.11,129.08,7.80708533]
[1742485474774,57.61280623,129.11,129.08,0.05758533]
[1742485475277,7.7494,129.09,129.08,0.05758533]
[1742485479082,32.69310439,129.11,129.08,0.05758533]
[1742485479475,7.7491,129.1,129.08,0.05758533]
[1742485479687,0.05310439,129.11,129.08,0.05758533]
[1742485479885,32.67310439,129.11,129.08,0.05758533]
[1742485480788,7.7494,129.09,129.08,0.05758533]
[1742485481776,7.751,129.07,129.05,7.7518]
[1742485481975,32.62,129.08,128.98,302.28155924]
[1742485482180,65.84330184,129.07,128.98,302.28155924]
[1742485482386,7.7532,129.03,129.0,7.7545]
[1742485482585,40.3732,129.03,128.98,302.28155924]
[1742485482979,0.05508941,129.02,129.01,7.7542]
[1742485483185,0.05508941,129.02,128.99,0.05345687]
[1742485483891,0.05508941,129.02,128.99,7.80855687]
[1742485484785,0.05508941,129.02,128.99,0.05345687]
[1742485485682,0.05508941,129.02,128.93,264.3122]
[1742485485883,24.91970184,128.99,128.91,109.06045692]
[1742485486192,24.91970184,128.95,128.91,65.77893583]
[1742485486489,32.6,128.94,128.91,65.77893583]
[1742485486884,32.65916395,128.94,128.91,65.83712993]
[1742485487090,389.91970184,128.93,128.91,43.22552993]
[1742485487286,365.0,128.92,128.9,66.99643034]
[1742485487486,57.53970184,128.91,128.9,66.99643034]
[1742485487980,65.29970184,128.91,128.89,163.40370046]
[1742485488178,57.53970184,128.91,128.89,163.40370046]
[1742485488590,57.59125036,128.91,128.89,163.461462]
[1742485488787,7.7608,128.9,128.89,5.52822295]
[1742485488991,365.0,128.89,128.88,177.35558383]
[1742485489188,32.68120184,128.89,128.88,31.84386019]
[1742485489384,40.44120184,128.89,128.88,31.84386019]
[1742485489588,32.67970184,128.89,128.78,8.5321]
[1742485489780,24.91970184,128.87,128.78,8.5321]
[1742485490082,0.05241071,128.84,128.81,0.05079512]
[1742485490284,32.62,128.83,128.81,0.05079512]
[1742485490986,7.7657,128.82,128.81,0.05079512]
[1742485491585,7.76,128.82,128.74,128.74177455]
[1742485491786,57.53970184,128.83,128.74,128.74177455]
[1742485491992,32.62,128.83,128.74,153.66147639]
[1742485492595,0.05324568,128.8,128.77,0.05488324]
[1742485492793,32.62,128.79,128.77,0.05488324]
[1742485493392,0.05324568,128.8,128.79,7.7675]
[1742485493794,514.03406215,128.91,128.79,32.64]
[1742485493996,514.03406215,128.91,128.81,24.91970184]
[1742485493997,73.75330809,128.89,128.81,24.91970184]
[1742485494497,73.75330809,128.89,128.82,32.64]
[1742485494791,63.47498107,128.89,128.82,32.64]
[1742485495092,0.05946655,128.87,128.84,7.81853488]
[1742485495298,0.05946655,128.87,128.84,0.05413488]
[1742485496287,0.05946655,128.87,128.86,7.7633]
[1742485499098,365.0,128.91,128.9,7.7608]
[1742485501398,32.69424181,128.92,128.91,7.7602]
[1742485501799,0.05424181,128.92,128.91,7.7602]
[1742485502889,0.05424181,128.92,128.89,40.67207261]
[1742485502890,0.05424181,128.92,128.9,7.7606]
[1742485503202,0.05424181,128.92,128.89,0.05928288]
[1742485503598,0.05424181,128.92,128.91,7.7602]
[1742485505496,32.62,128.99,128.96,7.7569]
[1742485505898,32.62,128.99,128.97,7.7562]
[1742485506106,32.62,128.99,128.91,37.75221691]
[1742485506603,0.05344273,128.96,128.95,7.7578]
[1742485507001,0.05344273,128.96,128.94,0.0533759]
[1742485507306,32.67344273,128.96,128.93,7.7589]
[1742485507500,32.67344273,128.96,128.9,256.08]
[1742485507799,0.05344273,128.96,128.95,7.7578]
[1742485508005,662.19330809,129.05,128.95,7.7578]
[1742485508006,32.62,129.03,128.95,40.61278973]
[1742485508195,32.62,129.03,128.97,40.61278973]
[1742485508399,32.62,129.03,128.96,32.62]
[1742485508595,42.89832702,129.03,128.96,32.54802036]
[1742485508906,50.65162702,129.03,128.99,7.755]
[1742485509106,0.05332565,129.01,128.99,7.755]
[1742485509408,0.05332565,129.01,128.98,0.05031819]
[1742485509610,0.05332565,129.01,128.98,7.80581819]
[1742485509908,0.05332565,129.01,128.94,81.63558973]
[1742485510498,7.80792565,129.01,128.94,81.63558973]
[1742485510707,0.05332565,129.01,128.94,81.63558973]
[1742485510900,0.05332565,129.01,128.99,7.7551]
[1742485511100,0.05332565,129.01,128.96,0.05031027]
[1742485511298,0.05332565,129.01,128.94,81.63558973]
[1742485511299,32.6,129.0,128.97,0.05251239]
[1742485511498,7.7558,128.99,128.97,0.05251239]
[1742485511805,32.6,129.0,128.97,0.05251239]
[1742485512000,7.756,128.98,128.97,0.05251239]
[1742485512701,7.758,128.95,128.91,8.4479]
[1742485512901,32.6,128.94,128.91,8.4479]
[1742485513700,40.41208735,128.94,128.91,8.50259817]
[1742485513903,32.65338735,128.94,128.91,8.50259817]
[1742485514908,32.65338735,128.94,128.93,7.759]
[1742485515208,0.05338735,128.94,128.93,7.759]
[1742485515709,32.6,128.96,128.91,49.1153879]
[1742485516103,7.7581,128.95,128.91,49.1153879]
[1742485516297,32.6,128.96,128.93,7.7587]
[1742485516502,32.6,128.96,128.91,49.1153879]
[1742485516798,32.6,128.99,128.93,40.61278973]
[1742485517104,113.65481547,129.01,128.97,40.61278973]
[1742485517308,30.83498107,129.01,128.98,24.91867527]
[1742485517506,30.83498107,129.01,128.97,32.6]
[1742485517808,32.6,129.0,128.96,256.0]
[1742485518003,32.6,129.0,128.97,0.05817192]
[1742485518200,0.05520455,128.99,128.97,0.05817192]
[1742485519102,0.05520455,128.99,128.97,7.81447192]
[1742485519306,7.81090455,128.99,128.97,0.05817192]
[1742485519506,0.05520455,128.99,128.97,0.05817192]
[1742485519906,7.756,128.98,128.97,0.05817192]
[1742485520106,0.05520455,128.99,128.97,0.05817192]
[1742485520508,0.05520455,128.99,128.92,24.91867527]
[1742485520704,0.05520455,128.99,128.88,24.91867527]
[1742485520903,389.91867527,128.98,128.89,4.3814]
[1742485521110,24.91867527,128.96,128.89,4.3814]
[1742485521308,32.58,128.97,128.9,24.91867527]
[1742485521513,32.58,128.97,128.95,7.7573]
[1742485521914,32.6360158,128.97,128.95,7.80797098]
[1742485523812,32.6360158,128.97,128.96,7.7572]
[1742485524720,30.83498107,129.01,128.95,24.96904625]
[1742485524920,32.58,129.0,128.95,24.96904625]
[1742485525120,478.65481547,129.02,128.95,24.96904625]
[1742485525324,32.58,129.01,128.99,7.7551]
[1742485525618,32.58,129.01,128.95,24.91867527]
[1742485525817,0.05401866,128.99,128.97,0.05411854]
[1742485526016,32.58,128.98,128.97,0.05411854]
[1742485526918,0.05401866,128.99,128.98,7.756]
[1742485528008,397.58,129.02,128.97,0.05411854]
[1742485528418,397.58,129.02,128.97,24.97279381]
[1742485528614,365.0,129.02,129.01,7.7542]
[1742485528818,32.56,129.02,128.97,14.62898823]
[1742485529220,32.56,129.02,129.01,7.7542]
[1742485529524,32.56,129.02,128.96,4.3426]
[1742485529525,30.83498107,129.04,128.99,24.91867527]
[1742485529724,30.83498107,129.04,129.01,24.91867527]
[1742485529924,17.64918107,129.04,129.03,7.753]
[1742485530126,4.51441581,129.04,129.03,7.753]
[1742485530627,4.51441581,129.04,129.02,1.55357088]
[1742485531224,4.51441581,129.04,129.03,7.753]
[1742485531424,37.07441581,129.04,129.0,4.2754224]
[1742485532021,32.61043474,129.04,129.0,4.2754224]
[1742485532628,0.05043474,129.04,129.01,24.91867527]
[1742485532832,0.05043474,129.04,129.02,7.7533]
[1742485533032,0.05043474,129.04,129.0,4.2754224]
[1742485533327,0.05043474,129.04,129.02,7.7532]
[1742485533531,0.05043474,129.04,129.0,4.2754224]
[1742485533930,0.05043474,129.04,129.02,7.7531]
[1742485534433,0.05043474,129.04,129.03,7.753]
[1742485534631,90.5691344,129.1,129.03,24.91867527]
[1742485534632,32.56,129.08,129.03,24.91867527]
[1742485535134,32.56,129.08,129.06,7.7509]
[1742485535722,32.6119218,129.08,129.06,7.80460135]
[1742485535930,32.6119218,129.08,129.06,0.05370135]
[1742485537833,40.3620218,129.08,129.06,0.05370135]
[1742485538635,7.7506,129.07,129.06,0.05370135]
[1742485539227,40.3622218,129.08,129.06,0.05370135]
[1742485539426,32.6119218,129.08,129.06,0.05370135]
[1742485540233,7.7506,129.07,129.06,0.05370135]
[1742485540727,7.7541,129.02,128.99,4.3848]
[1742485540927,32.54,129.03,128.98,263.6959]
[1742485541231,7.7546,129.01,128.98,263.6959]
[1742485541428,40.2946,129.01,128.98,263.6959]
[1742485541629,32.54,129.01,128.98,255.94]
[1742485541934,0.05958811,129.01,128.98,255.99399299]
[1742485542334,0.05958811,129.01,128.99,4.227]
[1742485542532,32.54,129.04,128.99,4.227]
[1742485543228,40.2927,129.04,129.01,7.754]
[1742485543629,40.35129838,129.04,129.01,7.8032018]
[1742485543827,40.35129838,129.04,129.02,7.7535]
[1742485544024,7.7533,129.03,129.01,0.0492018]
[1742485544932,32.59859838,129.04,129.01,0.0492018]
[1742485545634,0.05859838,129.04,129.03,7.753]
[1742485546631,9.838e-05,129.04,129.03,7.753]
[1742485547432,9.838e-05,129.04,129.03,40.273]
[1742485547627,9.838e-05,129.04,129.03,44.4275]
[1742485547829,9.838e-05,129.04,129.03,48.5534]
[1742485548337,9.838e-05,129.04,129.03,7.753]
[1742485551632,9.838e-05,129.04,129.01,0.0492018]
[1742485551836,7.7536,129.02,129.01,0.0492018]
[1742485552037,40.2736,129.02,129.01,0.0492018]
[1742485553233,7.7554,128.99,128.97,7.7564]
[1742485553437,32.52,129.02,128.93,313.21867527]
[1742485553931,7.7557,128.99,128.93,313.21867527]
[1742485554132,40.2757,128.99,128.93,313.21867527]
[1742485554532,0.05493182,128.97,128.95,0.05254894]
[1742485554933,0.05493182,128.97,128.95,7.80994894]
[1742485555139,0.05493182,128.97,128.95,0.05254894]
[1742485555628,0.05493182,128.97,128.96,7.7572]
[1742485555833,0.05493182,128.97,128.95,0.05254894]
[1742485556138,0.05493182,128.97,128.96,7.7572]
[1742485559236,32.52,129.03,129.02,7.7535]
[1742485559436,115.3398344,129.05,128.99,24.91867527]
[1742485559741,115.3398344,129.05,129.03,7.7525]
[1742485559941,115.3398344,129.05,128.99,28.96227527]
[1742485560339,115.3398344,129.05,128.99,32.99677527]
[1742485560540,0.05577646,129.03,129.01,0.05671613]
[1742485560843,7.80907646,129.03,129.01,0.05671613]
[1742485561138,0.05577646,129.03,129.01,0.05671613]
[1742485561439,0.05577646,129.03,129.02,7.7536]
[1742485562231,7.646e-05,129.03,129.02,7.7536]
[1742485562436,32.5,129.07,129.06,7.7512]
[1742485562837,35.08877751,129.09,129.06,7.7512]
[1742485563033,32.5,129.08,129.06,7.7512]
[1742485563444,32.5,129.08,129.02,40.6353]
[1742485563644,32.5454477,129.08,129.06,0.05928834]
[1742485563848,7.7506,129.07,129.06,0.05928834]
[1742485564047,57.46412297,129.08,128.98,4.3903]
[1742485564242,29.24097527,129.06,128.98,4.3903]
[1742485564440,29.24097527,129.06,128.96,32.5]
[1742485564441,32.5,129.05,128.96,32.5]
[1742485564648,24.91867527,129.04,128.95,4.2625]
[1742485564846,29.26857527,129.04,128.97,7.7564]
[1742485565047,29.26857527,129.04,128.94,255.84]
[1742485565250,0.05182765,129.02,128.99,0.05543434]
[1742485565444,32.5,129.01,128.99,0.05543434]
[1742485566150,7.7548,129.0,128.99,0.05543434]
[1742485566636,40.2545,129.01,128.99,0.05543434]
[1742485566836,32.5,129.01,128.99,0.05543434]
[1742485567049,32.5,129.01,128.99,7.81053434]
[1742485567346,32.5,129.01,128.99,0.05543434]
[1742485567741,24.91867527,129.0,128.89,260.1025]
[1742485568051,24.91867527,128.96,128.86,7.9698]
[1742485568242,32.5,128.95,128.86,3.9607]
[1742485568443,389.91867527,128.94,128.84,29.20667527]
[1742485568643,389.91867527,128.94,128.88,7.762]
[1742485568843,0.05592391,128.9,128.88,0.05332775]
[1742485569045,32.5,128.89,128.88,0.05332775]
[1742485569247,40.2619,128.89,128.83,255.84]
[1742485569549,40.2619,128.89,128.76,24.91867527]
[1742485569550,24.91867527,128.88,128.77,24.91867527]
[1742485569848,32.5,128.89,128.79,24.91867527]
[1742485570238,32.5,128.88,128.81,24.91867527]
[1742485570445,0.05233603,128.85,128.83,0.05201538]
[1742485571044,3.603e-05,128.85,128.84,7.7645]
[1742485572748,4.1578,128.93,128.84,40.26]
[1742485572946,32.5,128.94,128.89,24.91867527]
[1742485573251,32.5,128.95,128.94,7.7584]
[1742485573850,32.5,128.95,128.93,7.81483646]
[1742485574049,32.5,128.95,128.93,0.05603646]
[1742485574246,32.55499685,128.95,128.93,0.05603646]
[1742485574448,32.55499685,128.95,128.94,7.7584]
[1742485576343,32.55499685,128.95,128.93,0.05603646]
[1742485576944,32.55499685,128.95,128.88,255.94]
[1742485577543,0.05499685,128.95,128.89,24.91867527]
[1742485577748,0.05499685,128.95,128.92,24.91867527]
[1742485578046,0.05499685,128.95,128.94,7.7584]
[1742485578355,32.5,128.99,128.94,24.91867527]
[1742485578654,32.5,128.99,128.98,7.756]
[1742485578951,4.167,129.02,129.01,7.7542]
[1742485579143,36.8836,129.03,128.97,24.91867527]
[1742485579144,32.5,129.03,128.97,24.91867527]
[1742485579451,0.05374771,129.03,129.0,0.05488094]
[1742485580148,7.7542,129.01,129.0,0.05488094]
[1742485580447,40.2542,129.01,129.0,0.05488094]
[1742485580645,32.5,129.01,129.0,0.05488094]
[1742485581244,40.2542,129.01,129.0,0.05488094]
[1742485582148,32.5,129.01,129.0,0.05488094]
[1742485583251,0.05374771,129.03,129.0,7.80938094]
[1742485583448,0.05374771,129.03,129.0,0.05488094]
[1742485583644,0.05374771,129.03,129.0,8.48048094]
[1742485583850,0.05374771,129.03,129.0,0.05488094]
[1742485586049,0.05374771,129.03,129.0,7.80968094]
[1742485586456,0.05374771,129.03,129.0,0.05488094]
[1742485586757,0.05374771,129.03,129.0,7.80968094]
[1742485587453,0.05374771,129.03,129.0,32.53488094]
[1742485587850,0.05374771,129.03,129.0,40.28938094]
[1742485588046,0.05374771,129.03,129.0,32.53488094]
[1742485588245,0.05374771,129.03,129.01,7.7538]
[1742485588651,0.05374771,129.03,129.0,32.53488094]
[1742485588853,0.05374771,129.03,129.01,7.7538]
[1742485589046,0.05374771,129.03,129.0,32.53488094]
[1742485589463,0.05374771,129.03,129.0,40.28948094]
[1742485589948,7.80694771,129.03,129.0,32.53488094]
[1742485590149,0.05374771,129.03,129.0,0.05488094]
[1742485591248,0.05374771,129.03,129.02,7.7536]
[1742485591953,0.05374771,129.03,129.01,7.754]
[1742485592154,0.05374771,129.03,129.0,255.93488094]
[1742485592655,0.05374771,129.03,129.02,7.7536]
[1742485593155,0.05374771,129.03,129.01,7.7541]
[1742485593452,0.05374771,129.03,129.0,255.93488094]
[1742485593649,0.05374771,129.03,129.02,7.7536]
[1742485594858,397.46,129.08,129.05,7.7515]
[1742485595162,478.79781191,129.13,129.04,32.46]
[1742485595348,478.79781191,129.13,129.01,24.91867527]
[1742485595349,42.75869066,129.12,129.05,57.37867527]
[1742485595764,10.29869066,129.12,129.05,57.37867527]
[1742485595950,10.29869066,129.12,129.06,255.84]
[1742485596262,0.05456009,129.1,129.07,0.05049527]
[1742485597062,0.05456009,129.1,129.08,7.7497]
[1742485597261,0.05456009,129.1,129.07,0.05049527]
[1742485597754,0.05456009,129.1,129.09,7.7494]
[1742485599169,0.05456009,129.1,129.08,7.7497]
[1742485599358,0.05456009,129.1,129.07,0.05049527]
[1742485600853,7.75,129.08,129.07,0.05049527]
[1742485601056,32.44,129.08,129.01,32.44]
[1742485601264,7.7519,129.05,129.01,32.44]
[1742485601459,32.44,129.08,129.01,32.44]
[1742485601862,7.7522,129.05,129.02,7.7533]
[1742485602063,32.44,129.08,129.0,288.2]
[1742485602254,0.05134427,129.05,129.02,0.05110444]
[1742485602458,7.753,129.03,129.02,0.05110444]
[1742485603065,7.7527,129.04,129.02,0.05110444]
[1742485603268,32.49134427,129.05,129.02,0.05110444]
[1742485603567,7.753,129.03,129.02,0.05110444]
[1742485604160,40.24344427,129.05,129.02,0.05110444]
[1742485604562,32.49134427,129.05,129.02,0.05110444]
[1742485604767,0.05134427,129.05,129.03,7.7525]
[1742485605065,0.05134427,129.05,129.02,0.05110444]
[1742485605260,0.05134427,129.05,129.04,7.7524]
[1742485606261,40.1892,129.1,129.03,32.44]
[1742485606466,40.1892,129.1,129.04,4.3491]
[1742485606871,7.7497,129.09,129.06,7.7508]
[1742485607071,32.44,129.1,129.04,4.3491]
[1742485607363,40.1892,129.1,129.07,7.7504]
[1742485607567,0.04995672,129.08,129.07,7.7504]
[1742485609373,0.04995672,129.08,129.06,7.80393509]
[1742485609671,0.04995672,129.08,129.06,0.05293509]
[1742485609871,7.7506,129.07,129.06,0.05293509]
[1742485610371,40.1706,129.07,129.06,0.05293509]
[1742485610671,32.42,129.07,129.0,255.76]
[1742485610862,4.1952,129.06,129.0,255.76]
[1742485611270,7.7531,129.03,129.0,255.76]
[1742485611768,32.42,129.04,129.0,255.76]
[1742485611966,0.04896003,129.03,129.0,255.81818564]
[1742485612267,0.04896003,129.03,129.02,7.7533]
[1742485613268,0.04896003,129.03,129.0,255.81818564]
[1742485614874,0.04896003,129.03,129.01,7.7538]
[1742485615072,0.04896003,129.03,129.0,255.81818564]
[1742485615462,0.04896003,129.03,129.02,7.7536]
[1742485616073,7.80196003,129.03,129.01,7.754]
[1742485616274,0.04896003,129.03,129.0,255.81818564]
[1742485616667,0.04896003,129.03,129.02,7.7536]
[1742485617569,0.04896003,129.03,129.0,255.81818564]
[1742485617774,0.04896003,129.03,129.01,7.7539]
[1742485618076,0.04896003,129.03,129.0,255.81818564]
[1742485618475,0.04896003,129.03,129.02,7.7536]
[1742485621073,0.04896003,129.03,129.0,255.81818564]
[1742485621370,40.22226003,129.03,129.0,263.57268564]
[1742485621879,32.46896003,129.03,129.0,255.81818564]
[1742485622579,0.04896003,129.03,129.02,7.7536]
[1742485623574,41.27666817,129.06,129.05,7.7518]
[1742485623971,29.08296817,129.06,129.05,7.7518]
[1742485624278,124.11436031,129.08,129.04,24.91867527]
[1742485624483,124.11436031,129.08,129.06,24.91867527]
[1742485624684,187.40894848,129.09,129.08,7.75]
[1742485625087,24.11524992,129.09,129.08,7.75]
[1742485625582,1.43914992,129.09,129.08,7.75]
[1742485625779,8.473e-05,129.1,129.09,7.7494]
[1742485625979,110.05082088,129.12,129.09,32.4]
[1742485626278,217.14186178,129.13,129.12,7.7476]
[1742485626477,217.14186178,129.13,129.12,288.2]
[1742485627881,167.86063658,129.13,129.12,295.9476]
[1742485628090,0.0492562,129.14,129.12,288.2]
[1742485628294,5.62e-05,129.14,129.13,7.747]
[1742485629178,26.44912207,129.22,129.13,32.65867527]
[1742485629381,26.44912207,129.22,129.13,24.91867527]
[1742485629987,7.7424,129.21,129.13,24.91867527]
[1742485630183,26.44912207,129.22,129.13,24.91867527]
[1742485630390,26.44912207,129.22,129.16,0.05835299]
[1742485630594,7.7425,129.21,129.17,75.35103997]
[1742485630889,7.8e-05,129.22,129.17,75.35103997]
[1742485631486,7.8e-05,129.22,129.17,100.26971524]
[1742485632085,7.8e-05,129.22,129.19,7.743]
[1742485632588,7.8e-05,129.22,129.2,7.7426]
[1742485632788,7.8e-05,129.22,129.19,0.05407255]
[1742485633691,7.8e-05,129.22,129.2,7.7423]
[1742485634094,7.8e-05,129.22,129.19,0.05407255]
[1742485634979,32.360078,129.22,129.19,0.05407255]
[1742485635189,7.7422,129.21,129.19,0.05407255]
[1742485635380,32.360078,129.22,129.19,0.05407255]
[1742485635788,40.102078,129.22,129.19,0.05407255]
[1742485636290,32.360078,129.22,129.19,0.05407255]
[1742485636487,7.8e-05,129.22,129.19,0.05407255]
[1742485636993,7.8e-05,129.22,129.2,7.7425]
[1742485637296,7.8e-05,129.22,129.19,0.05407255]
[1742485637790,7.8e-05,129.22,129.19,24.97274782]
[1742485637989,7.8e-05,129.22,129.19,0.05407255]
[1742485638691,7.8e-05,129.22,129.21,7.7422]
[1742485638894,7.8e-05,129.22,129.21,40.1022]
[1742485639489,3.69359007,129.24,129.23,7.741]
[1742485640096,3.69359007,129.24,129.22,0.05639652]
[1742485640291,3.69359007,129.24,129.18,263.3836]
[1742485640490,3.69359007,129.24,129.18,255.64]
[1742485640898,7.7419,129.22,129.18,255.64]
[1742485641087,3.69359007,129.24,129.18,255.64]
[1742485641291,24.91867527,129.23,129.16,42.95103997]
[1742485641498,32.37127769,129.22,129.2,0.05373211]
[1742485641793,32.37127769,129.22,129.17,42.95103997]
[1742485642696,0.05127769,129.22,129.18,0.05149344]
[1742485643194,7.7426,129.21,129.18,0.05149344]
[1742485643407,32.34,129.21,129.18,0.05149344]
[1742485643693,4.1529,129.2,129.14,7.746]
[1742485643895,24.91867527,129.19,129.13,255.52]
[1742485644094,32.34,129.18,129.1,42.95103997]
[1742485644402,24.91867527,129.15,129.1,42.95103997]
[1742485644588,32.34,129.14,129.1,42.95103997]
[1742485644789,40.13760491,129.14,129.11,7.79935104]
[1742485644993,32.39090491,129.14,129.11,7.79935104]
[1742485645598,32.39090491,129.14,129.11,0.05145104]
[1742485646601,4.1829,129.13,129.11,0.05145104]
[1742485646798,7.7478,129.12,129.08,255.52]
[1742485647195,32.34,129.11,129.08,255.52]
[1742485647391,32.34,129.11,129.07,42.95103997]
[1742485647595,4.3646,129.1,129.07,23.16063997]
[1742485647797,4.3646,129.1,129.06,16.56373997]
[1742485647993,7.7504,129.08,129.07,0.04979091]
[1742485648199,7.7504,129.08,129.05,85.90207997]
[1742485648200,32.34,129.08,129.05,85.90207997]
[1742485649402,32.34,129.08,129.05,85.9601907]
[1742485649597,32.36,129.08,129.05,85.9601907]
[1742485650009,32.40981495,129.1,129.05,85.9601907]
[1742485650211,0.04981495,129.1,129.05,85.9601907]
[1742485650402,0.04981495,129.1,129.08,7.7497]
[1742485650598,0.04981495,129.1,129.05,85.90207997]
[1742485650815,32.40981495,129.1,129.08,0.05067985]
[1742485651102,0.04981495,129.1,129.09,7.7494]
[1742485652414,0.04981495,129.1,129.09,295.7494]
[1742485652800,32.36,129.16,129.09,312.91867527]
[1742485653702,32.36,129.16,129.11,7.7482]
[1742485653899,0.0489375,129.14,129.11,0.05671097]
[1742485654111,57.27867527,129.13,129.04,350.07467997]
[1742485654313,4.1893,129.12,129.07,7.7503]
[1742485654513,4.1893,129.12,129.04,350.07467997]
[1742485654716,24.91867527,129.11,129.04,341.54207997]
[1742485655012,24.91867527,129.11,129.03,214.75519992]
[1742485655013,32.36,129.1,129.03,214.75519992]
[1742485655212,32.36,129.1,129.03,85.90207997]
[1742485655516,0.05453408,129.08,129.05,0.05317986]
[1742485655908,0.05453408,129.08,129.07,7.7506]
[1742485657605,365.0,129.2,129.14,7.7463]
[1742485657802,57.27867527,129.19,129.08,24.91867527]
[1742485658213,7.7469,129.14,129.1,7.7487]
[1742485658408,32.36,129.14,129.06,40.5952]
[1742485658615,32.36,129.14,129.09,7.749]
[1742485658820,0.05367644,129.11,129.09,0.05534967]
[1742485659211,0.05367644,129.11,129.1,7.7488]
[1742485662113,0.05367644,129.11,129.09,0.05534967]
[1742485663122,0.05367644,129.11,129.1,7.7488]
[1742485663718,0.05367644,129.11,129.09,0.05534967]
[1742485665418,0.05367644,129.11,129.1,7.7488]
[1742485666118,365.0,129.19,129.1,24.91867527]
[1742485666316,32.34,129.18,129.11,255.64]
[1742485666824,32.34,129.18,129.15,7.7454]
[1742485667126,32.34,129.18,129.12,32.34]
[1742485667326,32.3925541,129.18,129.16,7.7448]
[1742485667926,40.1366541,129.18,129.15,7.80035586]
[1742485668319,32.3925541,129.18,129.15,0.05475586]
[1742485668519,7.7452,129.16,129.15,0.05475586]
[1742485668719,32.3925541,129.18,129.15,0.05475586]
[1742485668916,7.7452,129.16,129.15,0.05475586]
[1742485669523,7.7469,129.14,129.11,263.3879]
[1742485670029,32.34,129.15,129.11,255.64]
[1742485670424,32.34,129.17,129.11,255.64]
[1742485670727,0.05301124,129.15,129.13,0.05350118]
[1742485671426,7.79901124,129.15,129.13,0.05350118]
[1742485671622,0.05301124,129.15,129.13,0.05350118]
[1742485671824,0.05301124,129.15,129.13,7.80020118]
[1742485672022,0.05301124,129.15,129.13,0.05350118]
[1742485673029,0.05301124,129.15,129.14,7.7464]
[1742485673234,0.05301124,129.15,129.13,0.05350118]
[1742485673532,0.05301124,129.15,129.14,7.7464]
[1742485674529,1.124e-05,129.15,129.14,7.7464]